fUST/lending_fUST_20250520
["ID","MTS","AMOUNT","RATE_DAILY","PERIOD"]
[361670936,1747678292145,-1049.01821402,0.0002244,2]
[361670937,1747678292154,-1067.58,0.0002244,5]
[361670938,1747678292163,-499.51,0.00022465,2]
[361670939,1747678292172,-430.0,0.00022465,2]
[361670940,1747678292182,-686.82,0.00022465,2]
[361670941,1747678292191,-430.0,0.00022465,2]
[361670942,1747678292201,-681.39,0.00022465,2]
[361670943,1747678292210,-430.0,0.00022465,2]
[361670944,1747678292220,-629.1,0.00022465,2]
[361670945,1747678292229,-430.0,0.00022465,2]
[361670946,1747678292238,-1132.44,0.00022465,2]
[361670947,1747678292247,-430.0,0.00022465,2]
[361670948,1747678292257,-852.15,0.00022465,2]
[361670949,1747678292266,-605.64,0.00022465,2]
[361670950,1747678292276,-875.09,0.00022465,2]
[361670951,1747678292285,-430.0,0.00022465,2]
[361670952,1747678292294,-430.0,0.00022465,2]
[361670953,1747678292302,-430.0,0.00022465,2]
[361670954,1747678292311,-1089.21668332,0.00022465,2]
[361670955,1747678292321,-545.76,0.00022465,2]
[361670956,1747678292330,-671.94,0.00022465,2]
[361670957,1747678292339,-701.04,0.00022465,2]
[361670958,1747678292349,-575.34,0.00022465,2]
[361670959,1747678292358,-433.77,0.00022465,2]
[361670960,1747678292368,-171.29,0.00022465,2]
[361670961,1747678292377,-430.0,0.00022465,2]
[361670962,1747678292387,-430.0,0.00022465,2]
[361670963,1747678292396,-439.55,0.00022465,2]
[361670964,1747678292405,-451.43,0.00022465,2]
[361670965,1747678292415,-430.0,0.00022465,2]
[361670966,1747678292424,-745.65,0.00022465,2]
[361670967,1747678292433,-430.0,0.00022465,2]
[361670968,1747678292443,-430.0,0.00022465,2]
[361670969,1747678292452,-430.0,0.00022465,2]
[361670970,1747678292461,-438.7,0.00022465,2]
[361670971,1747678292471,-434.58,0.00022465,2]
[361670972,1747678292481,-430.0,0.00022465,2]
[361670973,1747678292490,-1375.68,0.00022465,2]
[361670974,1747678292499,-551.59,0.00022465,2]
[361670975,1747678292509,-430.0,0.00022465,2]
[361670976,1747678292518,-430.0,0.00022465,2]
[361670977,1747678292527,-430.0,0.00022465,2]
[361670978,1747678292537,-530.62,0.00022465,2]
[361670979,1747678292547,-430.0,0.00022465,2]
[361670980,1747678292556,-2065.45,0.00022465,2]
[361670981,1747678292567,-430.0,0.00022465,2]
[361670982,1747678292576,-649.53,0.00022465,2]
[361670983,1747678292586,-243.58730736,0.00022465,2]
[361670984,1747678292596,-864.52,0.00022465,2]
[361670985,1747678292605,-2491.97,0.00022465,2]
[361670986,1747678292615,-637.32,0.00022465,2]
[361670987,1747678292624,-1871.71,0.00022465,2]
[361670988,1747678292633,-817.13,0.00022465,2]
[361670989,1747678292643,-5294.37,0.00022465,2]
[361670990,1747678292652,-534.03,0.00022465,2]
[361670991,1747678292661,-566.9,0.00022465,2]
[361670992,1747678292671,-430.0,0.00022465,2]
[361670993,1747678292680,-2065.21,0.00022465,2]
[361670994,1747678292690,-537.77,0.00022465,2]
[361670995,1747678292699,-430.0,0.00022465,2]
[361670996,1747678292709,-4975.86,0.00022465,2]
[361670997,1747678292718,-835.39,0.00022465,2]
[361670998,1747678292727,-1400.2,0.00022465,2]
[361670999,1747678292736,-1072.15,0.00022465,2]
[361671000,1747678292883,-1314.62,0.00022465,2]
[361671001,1747678292896,-1095.34,0.00022465,2]
[361671002,1747678292906,-1638.88,0.00022465,2]
[361671003,1747678292915,-430.0,0.00022465,2]
[361671004,1747678292924,-1009.6,0.00022465,2]
[361671005,1747678292934,-656.69,0.00022465,2]
[361671006,1747678292943,-7287.93,0.00022465,2]
[361671007,1747678292953,-1675.27,0.00022465,2]
[361671008,1747678292963,-430.0,0.00022465,2]
[361671009,1747678292973,-4789.9,0.00022465,2]
[361671010,1747678292982,-430.0,0.00022465,2]
[361671011,1747678292991,-582.76,0.00022465,2]
[361671012,1747678293000,-1475.08,0.00022465,2]
[361671013,1747678293010,-3802.2,0.00022465,2]
[361671014,1747678293020,-441.87,0.00022465,2]
[361671015,1747678293029,-2022.39,0.00022465,2]
[361671016,1747678293038,-3870.66,0.00022465,2]
[361671017,1747678293048,-4521.89,0.00022465,2]
[361671018,1747678293058,-623.36,0.00022465,2]
[361671019,1747678293068,-1455.67,0.00022465,2]
[361671020,1747678293078,-430.0,0.00022465,2]
[361671021,1747678293088,-1638.01,0.00022465,2]
[361671022,1747678293097,-542.53,0.00022465,2]
[361671023,1747678293107,-430.0,0.00022465,2]
[361671024,1747678293117,-861.13,0.00022465,2]
[361671025,1747678293127,-735.09,0.00022465,2]
[361671026,1747678293136,-430.0,0.00022465,2]
[361671027,1747678293146,-446.73,0.00022465,2]
[361671028,1747678293156,-430.0,0.00022465,2]
[361671029,1747678293166,-906.22,0.00022465,2]
[361671030,1747678293175,-430.0,0.00022465,2]
[361671031,1747678293185,-2900.95,0.00022465,2]
[361671032,1747678293194,-430.0,0.00022465,2]
[361671033,1747678293204,-668.98,0.00022465,2]
[361671034,1747678293213,-806.41,0.00022465,2]
[361671035,1747678293224,-430.0,0.00022465,2]
[361671036,1747678293234,-853.48,0.00022465,2]
[361671037,1747678293244,-208.94230062,0.00022465,2]
[361671038,1747678293254,-996.23,0.00022465,2]
[361671039,1747678293263,-1223.52,0.00022465,2]
[361671040,1747678293273,-1390.5,0.00022465,2]
[361671041,1747678293284,-2124.49,0.00022465,2]
[361671042,1747678293295,-1409.57,0.00022465,2]
[361671043,1747678293304,-701.29,0.00022465,2]
[361671044,1747678293314,-501.83,0.00022465,2]
[361671045,1747678293324,-1561.15,0.00022465,2]
[361671046,1747678293334,-441.96,0.00022465,2]
[361671047,1747678293344,-899.12,0.00022465,2]
[361671048,1747678293354,-1104.97,0.00022465,2]
[361671049,1747678293364,-2522.44,0.00022465,2]
[361671050,1747678293373,-430.0,0.00022465,2]
[361671051,1747678293384,-468.08,0.00022465,2]
[361671052,1747678293395,-478.87,0.00022465,2]
[361671053,1747678293406,-1119.33,0.00022465,2]
[361671054,1747678293415,-1123.5,0.00022465,2]
[361671055,1747678293426,-926.76,0.00022465,2]
[361671056,1747678293435,-561.73,0.00022465,2]
[361671057,1747678293445,-1799.58,0.00022465,2]
[361671058,1747678293455,-430.0,0.00022465,2]
[361671059,1747678293466,-2130.66,0.00022465,2]
[361671060,1747678293475,-510.7,0.00022465,2]
[361671061,1747678293485,-466.42323056,0.00022465,2]
[361671062,1747678293495,-1184.09,0.00022465,2]
[361671063,1747678293504,-736.8,0.00022465,2]
[361671064,1747678293514,-581.31,0.00022465,2]
[361671065,1747678293524,-695.3,0.00022465,2]
[361671066,1747678293535,-752.45,0.00022465,2]
[361671067,1747678293545,-1529.7,0.00022465,2]
[361671068,1747678293555,-716.17,0.00022465,2]
[361671069,1747678293564,-5000.0,0.00022471,2]
[361671070,1747678293574,-4000.0,0.00022508,2]
[361671071,1747678293583,-351.62027473,0.00022521,2]
[361671072,1747678293593,-1067.58,0.0002254,5]
[361671073,1747678293603,-767.88815338,0.00022597,2]
[361671074,1747678293613,-450.076442,0.00022603,2]
[361671075,1747678293623,-4854.67001534,0.00022624,7]
[361671076,1747678293632,-1067.58,0.0002264,6]
[361671077,1747678293643,-30232.55493888,0.0002266,2]
[361671078,1747678293652,-160.0,0.0002268,4]
[361671079,1747678293662,-2500.0,0.00022697,2]
[361671080,1747678293673,-2500.0,0.00022697,2]
[361671081,1747678293683,-610.24654158,0.00022697,2]
[361671082,1747678293693,-2500.0,0.00022697,2]
[361671083,1747678293703,-3000.0,0.00022697,2]
[361671084,1747678293713,-155.29474375,0.00022722,2]
[361671085,1747678293722,-356.61377335,0.00022737,2]
[361671087,1747678399009,200.0,0.0002739,120]
[361671179,1747679432565,-5000.0,0.00013562,2]
[361671181,1747679432575,-316.205236,0.00013699,2]
[361671183,1747679432584,-1200.0,0.00014898,2]
[361671185,1747679432593,-300.0,0.00014899,2]
[361671187,1747679432602,-300.0,0.00014899,2]
[361671189,1747679432611,-300.0,0.00014899,2]
[361671190,1747679432621,-12560.59532039,0.000149,2]
[361671191,1747679432632,-475.9,0.000149,2]
[361671193,1747679432643,-553.83063043,0.000149,2]
[361671194,1747679432662,-2931.27266738,0.000149,2]
[361671196,1747679432671,-1601.15330738,0.00015,2]
[361671198,1747679432681,-1601.15330726,0.00015279,2]
[361671200,1747679432690,-1601.15330726,0.00015659,2]
[361671203,1747679432699,-1601.15330726,0.00016038,2]
[361671205,1747679432708,-420.0,0.00016308,2]
[361671208,1747679432717,-1680.0,0.00016388,2]
[361671211,1747679432727,-1601.15330726,0.00016417,2]
[361671214,1747679432736,-555.2986708,0.00016675,2]
[361671217,1747679432746,-1601.15330726,0.00016797,2]
[361671220,1747679432756,-216.43461,0.00017065,2]
[361671222,1747679432765,-300.0,0.00017157,2]
[361671223,1747679432775,-2252.44071966,0.0001716,2]
[361671224,1747679432784,-219.5249355,0.00017164,2]
[361671225,1747679432793,-1601.15330726,0.00017176,2]
[361671226,1747679432802,-1601.15330726,0.00017555,2]
[361671227,1747679432812,-151.0,0.0001771,2]
[361671229,1747679432821,-207.4,0.0001771,2]
[361671230,1747679432829,-1601.15330726,0.00017934,2]
[361671231,1747679432838,-151.0,0.00017966,2]
[361671232,1747679432847,-24009.51698397,0.00018256,2]
[361671233,1747679432856,-675.74415947,0.00018256,2]
[361671234,1747679432866,-1601.15330726,0.00018314,2]
[361671235,1747679432875,-15710.49,0.00018346,3]
[361671236,1747679432884,-7978.68,0.00018346,3]
[361671237,1747679432893,-3989.34,0.00018346,3]
[361671238,1747679432902,-1994.67,0.00018346,3]
[361671239,1747679432911,-997.34,0.00018346,3]
[361671240,1747679432921,-498.67,0.00018346,3]
[361671241,1747679432930,-249.33,0.00018346,3]
[361671242,1747679432939,-748.04,0.00018346,3]
[361671243,1747679432948,-212.35735062,0.00018346,3]
[361671244,1747679432957,-998.68447496,0.00018346,3]
[361671245,1747679432966,-12638.53552368,0.00018346,3]
[361671246,1747679432975,-500.0,0.00018355,2]
[361671247,1747679432985,-500.0,0.00018355,2]
[361671248,1747679432996,-500.0,0.00018355,2]
[361671249,1747679433006,-631.32497812,0.00018355,2]
[361671250,1747679433016,-500.0,0.00018355,2]
[361671251,1747679433027,-526.69008553,0.00018355,2]
[361671252,1747679433038,-500.0,0.00018355,2]
[361671253,1747679433048,-500.0,0.00018355,2]
[361671254,1747679433059,-500.0,0.00018355,2]
[361671255,1747679433069,-500.0,0.00018355,2]
[361671256,1747679433080,-500.0,0.00018355,2]
[361671257,1747679433092,-500.0,0.00018355,2]
[361671258,1747679433103,-500.0,0.00018355,2]
[361671259,1747679433115,-500.0,0.00018355,2]
[361671260,1747679433126,-550.0,0.00018355,2]
[361671261,1747679433137,-195.0,0.00018355,2]
[361671262,1747679433147,-168.13076607,0.00018356,2]
[361671263,1747679433158,-151.0,0.00018356,2]
[361671264,1747679433169,-151.0,0.00018356,2]
[361671265,1747679433179,-151.0,0.00018356,2]
[361671266,1747679433191,-151.0,0.00018356,2]
[361671267,1747679433201,-350.0,0.00018356,2]
[361671268,1747679433220,-430.0,0.00018356,2]
[361671269,1747679433233,-350.0,0.00018356,2]
[361671270,1747679433249,-352.75920492,0.00018356,2]
[361671271,1747679433259,-430.0,0.00018356,2]
[361671272,1747679433269,-450.0,0.00018356,2]
[361671273,1747679433279,-430.0,0.00018356,2]
[361671274,1747679433290,-430.0,0.00018356,2]
[361671275,1747679433300,-430.0,0.00018356,2]
[361671276,1747679433311,-450.0,0.00018356,2]
[361671277,1747679433321,-450.0,0.00018356,2]
[361671278,1747679433330,-450.0,0.00018356,2]
[361671279,1747679433340,-450.0,0.00018356,2]
[361671280,1747679433350,-1145.27854563,0.00018356,2]
[361671281,1747679433360,-450.0,0.00018356,2]
[361671282,1747679433369,-400.0,0.00018356,2]
[361671283,1747679433379,-450.0,0.00018356,2]
[361671284,1747679433388,-450.0,0.00018356,2]
[361671285,1747679433397,-430.0,0.00018356,2]
[361671286,1747679433407,-450.0,0.00018356,2]
[361671287,1747679433417,-430.0,0.00018356,2]
[361671288,1747679433427,-450.0,0.00018356,2]
[361671289,1747679433436,-400.0,0.00018356,2]
[361671290,1747679433446,-450.0,0.00018356,2]
[361671291,1747679433455,-430.0,0.00018356,2]
[361671292,1747679433465,-450.0,0.00018356,2]
[361671293,1747679433474,-400.0,0.00018356,2]
[361671294,1747679433484,-450.0,0.00018356,2]
[361671295,1747679433496,-450.0,0.00018356,2]
[361671296,1747679433506,-430.0,0.00018356,2]
[361671297,1747679433516,-450.0,0.00018356,2]
[361671298,1747679433525,-430.0,0.00018356,2]
[361671299,1747679433535,-450.0,0.00018356,2]
[361671300,1747679433544,-300.0,0.00018356,2]
[361671301,1747679433553,-450.0,0.00018356,2]
[361671302,1747679433563,-450.0,0.00018356,2]
[361671303,1747679433572,-430.0,0.00018356,2]
[361671304,1747679433582,-300.0,0.00018356,2]
[361671305,1747679433592,-450.0,0.00018356,2]
[361671306,1747679433602,-420.0,0.00018356,2]
[361671307,1747679433611,-430.0,0.00018356,2]
[361671308,1747679433622,-450.0,0.00018356,2]
[361671309,1747679433632,-450.0,0.00018356,2]
[361671310,1747679433642,-450.0,0.00018356,2]
[361671311,1747679433826,-400.0,0.00018356,2]
[361671312,1747679433837,-400.0,0.00018356,2]
[361671313,1747679433847,-400.0,0.00018356,2]
[361671314,1747679433856,-450.0,0.00018356,2]
[361671315,1747679433866,-450.0,0.00018356,2]
[361671316,1747679433875,-541.52,0.00018356,2]
[361671317,1747679433885,-450.0,0.00018356,2]
[361671318,1747679433895,-450.0,0.00018356,2]
[361671319,1747679433904,-400.0,0.00018356,2]
[361671320,1747679433914,-450.0,0.00018356,2]
[361671321,1747679433923,-450.0,0.00018356,2]
[361671322,1747679433933,-450.0,0.00018356,2]
[361671323,1747679433942,-400.0,0.00018356,2]
[361671324,1747679433951,-450.0,0.00018356,2]
[361671325,1747679433960,-450.0,0.00018356,2]
[361671326,1747679433970,-430.0,0.00018356,2]
[361671327,1747679433980,-450.0,0.00018356,2]
[361671328,1747679433993,-450.0,0.00018356,2]
[361671329,1747679434002,-450.0,0.00018356,2]
[361671330,1747679434011,-450.0,0.00018356,2]
[361671331,1747679434021,-450.0,0.00018356,2]
[361671332,1747679434031,-430.0,0.00018356,2]
[361671333,1747679434040,-403.63844082,0.00018356,2]
[361671334,1747679434050,-450.0,0.00018356,2]
[361671335,1747679434060,-450.0,0.00018356,2]
[361671336,1747679434069,-410.7449076,0.00018356,2]
[361671337,1747679434078,-350.0,0.00018356,2]
[361671338,1747679434088,-206.22640275,0.00018356,2]
[361671339,1747679434098,-450.0,0.00018356,2]
[361671340,1747679434108,-350.0,0.00018356,2]
[361671341,1747679434118,-450.0,0.00018356,2]
[361671342,1747679434127,-450.0,0.00018356,2]
[361671343,1747679434137,-222.94299516,0.00018356,2]
[361671344,1747679434147,-450.0,0.00018356,2]
[361671345,1747679434156,-450.0,0.00018356,2]
[361671346,1747679434166,-450.0,0.00018356,2]
[361671347,1747679434175,-450.0,0.00018356,2]
[361671348,1747679434184,-450.0,0.00018356,2]
[361671349,1747679434193,-450.0,0.00018356,2]
[361671350,1747679434203,-326.9439525,0.00018356,2]
[361671351,1747679434216,-450.0,0.00018356,2]
[361671352,1747679434225,-450.0,0.00018356,2]
[361671353,1747679434235,-450.0,0.00018356,2]
[361671354,1747679434244,-430.0,0.00018356,2]
[361671355,1747679434255,-450.0,0.00018356,2]
[361671356,1747679434264,-450.0,0.00018356,2]
[361671357,1747679434273,-450.0,0.00018356,2]
[361671358,1747679434282,-450.0,0.00018356,2]
[361671359,1747679434291,-341.9882811,0.00018356,2]
[361671360,1747679434302,-350.49230863,0.00018356,2]
[361671361,1747679434311,-450.0,0.00018356,2]
[361671362,1747679434320,-451.81633193,0.00018356,2]
[361671363,1747679434329,-450.0,0.00018356,2]
[361671364,1747679434338,-160.19330124,0.00018356,2]
[361671365,1747679434348,-420.01262633,0.00018356,2]
[361671366,1747679434357,-450.0,0.00018356,2]
[361671367,1747679434366,-450.0,0.00018356,2]
[361671368,1747679434375,-450.0,0.00018356,2]
[361671369,1747679434385,-430.0,0.00018356,2]
[361671370,1747679434394,-430.0,0.00018356,2]
[361671371,1747679434402,-350.0,0.00018356,2]
[361671372,1747679434412,-400.0,0.00018356,2]
[361671373,1747679434421,-450.0,0.00018356,2]
[361671374,1747679434431,-450.0,0.00018356,2]
[361671375,1747679434440,-450.0,0.00018356,2]
[361671376,1747679434450,-400.0,0.00018356,2]
[361671377,1747679434459,-539.12081235,0.00018356,2]
[361671378,1747679434469,-450.0,0.00018356,2]
[361671379,1747679434479,-450.0,0.00018356,2]
[361671380,1747679434490,-450.0,0.00018356,2]
[361671381,1747679434500,-300.64481526,0.00018356,2]
[361671382,1747679434510,-450.0,0.00018356,2]
[361671383,1747679434519,-450.0,0.00018356,2]
[361671384,1747679434529,-350.0,0.00018356,2]
[361671385,1747679434539,-450.0,0.00018356,2]
[361671386,1747679434549,-447.84,0.00018356,2]
[361671387,1747679434559,-450.0,0.00018356,2]
[361671388,1747679434568,-350.0,0.00018356,2]
[361671389,1747679434578,-430.0,0.00018356,2]
[361671390,1747679434588,-450.0,0.00018356,2]
[361671391,1747679434598,-450.0,0.00018356,2]
[361671392,1747679434607,-217.42104227,0.00018356,2]
[361671393,1747679434617,-450.0,0.00018356,2]
[361671394,1747679434626,-450.0,0.00018356,2]
[361671395,1747679434636,-450.0,0.00018356,2]
[361671396,1747679434645,-400.0,0.00018356,2]
[361671397,1747679434654,-554.74,0.00018356,2]
[361671398,1747679434663,-450.0,0.00018356,2]
[361671399,1747679434673,-430.0,0.00018356,2]
[361671400,1747679434682,-430.0,0.00018356,2]
[361671401,1747679434692,-300.0,0.00018356,2]
[361671402,1747679434701,-430.0,0.00018356,2]
[361671403,1747679434711,-450.0,0.00018356,2]
[361671404,1747679434720,-450.0,0.00018356,2]
[361671405,1747679434730,-430.0,0.00018356,2]
[361671406,1747679434741,-430.0,0.00018356,2]
[361671407,1747679434750,-430.0,0.00018356,2]
[361671408,1747679434759,-300.0,0.00018356,2]
[361671409,1747679434769,-400.0,0.00018356,2]
[361671410,1747679434778,-450.0,0.00018356,2]
[361671411,1747679434788,-450.0,0.00018356,2]
[361671412,1747679434798,-450.0,0.00018356,2]
[361671413,1747679434806,-450.0,0.00018356,2]
[361671414,1747679434815,-360.67628353,0.00018356,2]
[361671415,1747679434825,-450.0,0.00018356,2]
[361671416,1747679434834,-450.0,0.00018356,2]
[361671417,1747679434844,-430.0,0.00018356,2]
[361671418,1747679434853,-450.0,0.00018356,2]
[361671419,1747679434863,-432.26426022,0.00018356,2]
[361671420,1747679434872,-430.0,0.00018356,2]
[361671421,1747679434882,-450.0,0.00018356,2]
[361671422,1747679434891,-450.0,0.00018356,2]
[361671423,1747679434900,-430.0,0.00018356,2]
[361671424,1747679434909,-430.0,0.00018356,2]
[361671425,1747679434919,-450.0,0.00018356,2]
[361671426,1747679434928,-450.0,0.00018356,2]
[361671427,1747679434937,-450.0,0.00018356,2]
[361671428,1747679434947,-450.0,0.00018356,2]
[361671429,1747679434956,-450.0,0.00018356,2]
[361671430,1747679434965,-450.0,0.00018356,2]
[361671431,1747679434974,-300.0,0.00018356,2]
[361671432,1747679434983,-450.0,0.00018356,2]
[361671433,1747679434994,-450.0,0.00018356,2]
[361671434,1747679435003,-430.0,0.00018356,2]
[361671435,1747679435013,-450.0,0.00018356,2]
[361671436,1747679435022,-450.0,0.00018356,2]
[361671437,1747679435031,-450.0,0.00018356,2]
[361671438,1747679435041,-450.0,0.00018356,2]
[361671439,1747679435050,-430.0,0.00018356,2]
[361671440,1747679435060,-450.0,0.00018356,2]
[361671441,1747679435069,-430.0,0.00018356,2]
[361671442,1747679435078,-400.0,0.00018356,2]
[361671443,1747679435088,-450.0,0.00018356,2]
[361671444,1747679435097,-450.0,0.00018356,2]
[361671445,1747679435107,-350.0,0.00018356,2]
[361671446,1747679435116,-430.0,0.00018356,2]
[361671447,1747679435126,-350.0,0.00018356,2]
[361671448,1747679435135,-400.0,0.00018356,2]
[361671449,1747679435144,-450.0,0.00018356,2]
[361671450,1747679435154,-450.0,0.00018356,2]
[361671451,1747679435163,-350.0,0.00018356,2]
[361671452,1747679435173,-405.21259076,0.00018356,2]
[361671453,1747679435182,-350.0,0.00018356,2]
[361671454,1747679435191,-350.0,0.00018356,2]
[361671455,1747679435200,-450.0,0.00018356,2]
[361671456,1747679435210,-350.0,0.00018356,2]
[361671457,1747679435222,-572.28155178,0.00018356,2]
[361671458,1747679435231,-450.0,0.00018356,2]
[361671459,1747679435242,-400.26115762,0.00018356,2]
[361671460,1747679435251,-450.0,0.00018356,2]
[361671461,1747679435262,-450.0,0.00018356,2]
[361671462,1747679435271,-450.0,0.00018356,2]
[361671463,1747679435280,-430.0,0.00018356,2]
[361671464,1747679435290,-450.0,0.00018356,2]
[361671465,1747679435301,-450.0,0.00018356,2]
[361671466,1747679435310,-430.0,0.00018356,2]
[361671467,1747679435320,-450.0,0.00018356,2]
[361671468,1747679435330,-430.0,0.00018356,2]
[361671469,1747679435339,-400.33222868,0.00018356,2]
[361671470,1747679435348,-447.47501403,0.00018356,2]
[361671471,1747679435357,-450.0,0.00018356,2]
[361671472,1747679435366,-430.0,0.00018356,2]
[361671473,1747679435375,-430.0,0.00018356,2]
[361671474,1747679435385,-450.0,0.00018356,2]
[361671475,1747679435394,-450.0,0.00018356,2]
[361671476,1747679435404,-450.0,0.00018356,2]
[361671477,1747679435413,-430.0,0.00018356,2]
[361671478,1747679435422,-430.0,0.00018356,2]
[361671479,1747679435431,-430.0,0.00018356,2]
[361671480,1747679435440,-430.0,0.00018356,2]
[361671481,1747679435450,-450.0,0.00018356,2]
[361671482,1747679435459,-430.0,0.00018356,2]
[361671483,1747679435468,-450.0,0.00018356,2]
[361671484,1747679435477,-450.0,0.00018356,2]
[361671485,1747679435487,-350.0,0.00018356,2]
[361671486,1747679435498,-400.0,0.00018356,2]
[361671487,1747679435507,-450.0,0.00018356,2]
[361671488,1747679435516,-450.0,0.00018356,2]
[361671489,1747679435525,-430.0,0.00018356,2]
[361671490,1747679435534,-350.0,0.00018356,2]
[361671491,1747679435544,-400.0,0.00018356,2]
[361671492,1747679435553,-430.0,0.00018356,2]
[361671493,1747679435563,-430.0,0.00018356,2]
[361671494,1747679435572,-450.0,0.00018356,2]
[361671495,1747679435581,-430.0,0.00018356,2]
[361671496,1747679435591,-450.0,0.00018356,2]
[361671497,1747679435600,-350.0,0.00018356,2]
[361671498,1747679435609,-450.0,0.00018356,2]
[361671499,1747679435618,-400.0,0.00018356,2]
[361671500,1747679435627,-430.0,0.00018356,2]
[361671501,1747679435637,-450.0,0.00018356,2]
[361671502,1747679435646,-350.0,0.00018356,2]
[361671503,1747679435655,-350.0,0.00018356,2]
[361671504,1747679435664,-450.0,0.00018356,2]
[361671505,1747679435673,-591.95,0.00018356,2]
[361671506,1747679435683,-450.0,0.00018356,2]
[361671507,1747679435692,-350.0,0.00018356,2]
[361671508,1747679435701,-430.0,0.00018356,2]
[361671509,1747679435710,-430.0,0.00018356,2]
[361671510,1747679435719,-350.0,0.00018356,2]
[361671511,1747679435729,-350.0,0.00018356,2]
[361671512,1747679435738,-350.0,0.00018356,2]
[361671513,1747679435749,-350.0,0.00018356,2]
[361671514,1747679435758,-430.0,0.00018356,2]
[361671515,1747679435767,-450.0,0.00018356,2]
[361671516,1747679435777,-450.0,0.00018356,2]
[361671517,1747679435787,-450.0,0.00018356,2]
[361671518,1747679435796,-350.0,0.00018356,2]
[361671519,1747679435805,-350.0,0.00018356,2]
[361671520,1747679435815,-879.36,0.00018356,2]
[361671521,1747679435824,-450.0,0.00018356,2]
[361671522,1747679435834,-350.0,0.00018356,2]
[361671523,1747679435844,-350.0,0.00018356,2]
[361671524,1747679435853,-430.0,0.00018356,2]
[361671525,1747679435862,-430.0,0.00018356,2]
[361671526,1747679435871,-401.78,0.00018356,2]
[361671527,1747679435882,-350.0,0.00018356,2]
[361671528,1747679435892,-350.0,0.00018356,2]
[361671529,1747679435902,-559.38,0.00018356,2]
[361671530,1747679435911,-350.0,0.00018356,2]
[361671531,1747679435921,-430.0,0.00018356,2]
[361671532,1747679435930,-350.0,0.00018356,2]
[361671533,1747679435939,-450.0,0.00018356,2]
[361671534,1747679435949,-350.0,0.00018356,2]
[361671535,1747679435959,-430.0,0.00018356,2]
[361671536,1747679435968,-350.0,0.00018356,2]
[361671537,1747679435977,-350.0,0.00018356,2]
[361671538,1747679435986,-350.0,0.00018356,2]
[361671539,1747679435996,-350.0,0.00018356,2]
[361671540,1747679436005,-509.18,0.00018356,2]
[361671541,1747679436015,-350.0,0.00018356,2]
[361671542,1747679436024,-350.0,0.00018356,2]
[361671543,1747679436034,-1142.15,0.00018356,2]
[361671544,1747679436042,-430.0,0.00018356,2]
[361671545,1747679436051,-450.0,0.00018356,2]
[361671546,1747679436061,-430.0,0.00018356,2]
[361671547,1747679436070,-450.0,0.00018356,2]
[361671548,1747679436080,-450.0,0.00018356,2]
[361671549,1747679436090,-350.0,0.00018356,2]
[361671550,1747679436099,-430.0,0.00018356,2]
[361671551,1747679436109,-450.0,0.00018356,2]